bitfinex/quotes_ETHUSD_20250814
["timestamp","ask_amount","ask_price","bid_price","bid_amount"]
[1755151313403,0.19871163,4722.2,4720.9,3.257]
[1755151313735,0.19871163,4722.2,4721.2,2.11809967]
[1755151314839,0.19871163,4722.2,4721.0,0.914]
[1755151315131,0.4571,4722.1,4721.1,3.45415765]
[1755151315333,0.11143116,4722.0,4721.2,3.45315765]
[1755151315515,0.19871163,4722.2,4721.2,3.256]
[1755151316718,0.4571,4722.3,4721.2,3.256]
[1755151317337,0.4571,4722.3,4720.9,0.914]
[1755151317539,0.4571,4722.3,4720.9,3.0322322]
[1755151317930,0.1056,4721.0,4720.9,3.0322322]
[1755151318522,0.1056,4721.0,4720.9,6.2882322]
[1755151319511,0.15963016,4722.6,4721.3,2.11805649]
[1755151319856,0.4571,4722.8,4721.4,1.11177695]
[1755151319857,0.4585,4722.1,4721.4,1.11177695]
[1755151320010,0.002,4722.3,4721.5,3.45377695]
[1755151320211,0.002,4722.3,4721.6,0.19777695]
[1755151320410,0.002,4722.3,4721.7,0.19777695]
[1755151320619,0.002,4722.3,4721.5,3.256]
[1755151320830,0.1056,4721.7,4721.6,0.1978611]
[1755151321141,0.1056,4721.7,4721.6,3.6931]
[1755151321308,0.1056,4721.7,4721.6,4.17]
[1755151321508,0.1056,4721.7,4721.6,3.256]
[1755151321711,0.1056,4721.7,4721.2,0.914]
[1755151322007,0.002,4722.3,4721.6,3.256]
[1755151322224,0.15358479,4722.2,4721.0,2.1181862]
[1755151322438,0.15358479,4722.2,4721.1,2.11813358]
[1755151322619,0.1056,4721.3,4721.1,2.11814278]
[1755151322823,0.1056,4721.2,4721.1,2.11814278]
[1755151323024,0.1056,4721.2,4720.8,0.001]
[1755151323249,0.4605,4722.0,4721.2,2.11809961]
[1755151323432,0.4605,4722.0,4720.9,0.914]
[1755151323747,0.13781,4721.9,4721.3,3.256]
[1755151323914,0.002,4722.3,4721.4,0.4371]
[1755151324245,0.4605,4722.2,4721.4,0.4371]
[1755151324417,0.1056,4721.5,4720.8,0.001]
[1755151324620,0.1056,4721.5,4721.1,2.11812969]
[1755151324828,0.4605,4722.2,4720.9,3.256]
[1755151325152,0.1056,4721.0,4720.9,3.256]
[1755151325331,0.1056,4721.0,4720.9,6.28824016]
[1755151327146,0.1056,4721.0,4720.8,0.001]
[1755151329323,0.1056,4721.0,4719.2,0.914]
[1755151329324,3.0,4720.6,4719.2,0.914]
[1755151329515,2.09582034,4720.5,4719.3,3.255]
[1755151329849,0.4571,4720.5,4719.3,3.255]
[1755151330153,0.1056,4719.4,4719.3,3.256]
[1755151331520,0.1056,4719.4,4719.3,4.17]
[1755151332023,0.1056,4719.4,4719.3,3.256]
[1755151332301,0.1056,4719.4,4719.3,0.001]
[1755151332464,0.1056,4719.4,4719.3,3.256]
[1755151333909,0.1056,4719.4,4719.3,4.17]
[1755151334086,0.1056,4719.4,4719.3,6.28895832]
[1755151335781,0.1056,4719.4,4719.3,3.256]
[1755151335982,0.1056,4719.4,4719.1,0.02]
[1755151336228,14.5,4719.3,4719.2,3.255]
[1755151336378,15.96056,4719.3,4719.2,3.255]
[1755151337682,15.96056,4719.3,4719.2,6.28800322]
[1755151337911,14.5,4719.3,4719.2,6.28800322]
[1755151339287,14.5,4719.3,4719.1,0.02]
[1755151339487,14.5,4719.3,4719.2,3.255]
[1755151339814,14.5,4719.3,4719.2,5.81110322]
[1755151340196,14.5,4719.3,4719.2,6.28800322]
[1755151340714,14.5,4719.3,4719.2,4.169]
[1755151341012,14.5,4719.3,4719.2,6.28800322]
[1755151341217,14.5,4719.3,4719.2,3.255]
[1755151341416,15.96056,4719.3,4719.2,3.255]
[1755151341820,15.96056,4719.3,4719.1,0.02]
[1755151342011,15.96056,4719.3,4719.2,3.255]
[1755151342917,16.06616,4719.3,4719.2,4.1831]
[1755151343117,14.6056,4719.3,4719.2,6.30210322]
[1755151343794,14.6056,4719.3,4719.2,4.1831]
[1755151344216,14.6056,4719.3,4719.2,3.255]
[1755151346116,14.6056,4719.3,4719.2,4.1831]
[1755151346527,14.6056,4719.3,4719.2,3.6931]
[1755151346888,14.6056,4719.3,4719.2,3.255]
[1755151347285,15.7489728,4719.3,4719.2,3.255]
[1755151347686,15.7489728,4719.3,4719.1,0.02]
[1755151348917,15.7489728,4719.3,4719.2,3.45224004]
[1755151349319,15.7489728,4719.3,4719.1,0.02]
[1755151350528,15.7489728,4719.3,4719.2,3.255]
[1755151351609,15.7489728,4719.3,4719.1,0.02]
[1755151351806,2.03859728,4719.2,4717.8,0.49]
[1755151352012,2.03859728,4719.2,4717.7,0.001]
[1755151352013,0.1056,4718.3,4717.7,0.001]
[1755151352420,17.6056,4718.3,4717.9,0.4381]
[1755151352622,3.0,4718.2,4717.7,0.001]
[1755151352926,0.4637,4719.1,4717.1,0.02]
[1755151352927,0.4637,4718.7,4717.8,3.254]
[1755151353129,0.4637,4718.7,4717.6,2.11971575]
[1755151353444,0.1056,4717.4,4717.1,2.1399339]
[1755151353742,0.1056,4717.3,4717.2,2.11990163]
[1755151354608,0.1056,4717.3,4717.2,6.30200163]
[1755151355833,0.1056,4717.3,4717.2,2.11990163]
[1755151356038,0.1056,4717.3,4717.1,0.02]
[1755151356235,0.1056,4717.3,4717.2,6.30300163]
[1755151357105,14.5,4718.5,4718.4,2.11936249]
[1755151357424,15.95,4718.5,4718.4,6.30146249]
[1755151357740,0.1056,4718.5,4718.4,6.30146249]
[1755151357940,0.1056,4718.5,4718.4,2.11936249]
[1755151358103,0.1056,4718.5,4718.4,6.30246249]
[1755151358303,0.1056,4718.5,4718.4,5.37436249]
[1755151358526,0.1056,4718.5,4718.4,3.255]
[1755151358727,1.0669,4718.5,4717.9,5.079]
[1755151358924,14.60669,4718.4,4717.9,5.079]
[1755151359138,0.1056,4718.0,4717.9,5.079]
[1755151359322,1.0669,4718.0,4716.9,0.9281]
[1755151359521,0.1056,4717.7,4716.9,0.9281]
[1755151359736,0.1056,4717.2,4717.0,2.11996728]
[1755151359938,0.1056,4717.2,4717.1,2.13994657]
[1755151360139,0.1056,4717.2,4716.2,5.079]
[1755151360314,0.1056,4717.2,4716.3,3.254]
[1755151360518,0.4637,4717.5,4716.5,2.12021626]
[1755151360823,0.4637,4717.5,4716.2,5.079]
[1755151360824,0.1064,4716.4,4716.2,5.079]
[1755151361025,0.1064,4716.4,4716.3,3.255]
[1755151364137,0.1064,4716.4,4716.3,3.6941]
[1755151364338,0.1064,4716.4,4716.3,3.256]
[1755151364546,0.1064,4716.4,4716.3,4.1841]
[1755151364720,14.6064,4716.4,4716.3,4.1841]
[1755151364918,14.6064,4716.4,4716.3,4.38144891]
[1755151365333,0.1064,4716.4,4716.3,4.38144891]
[1755151365737,14.6064,4716.4,4716.3,0.19831298]
[1755151366043,0.1064,4716.4,4716.3,3.45331298]
[1755151366346,0.1064,4716.4,4716.3,4.38141298]
[1755151366525,0.1064,4716.4,4716.3,3.45331298]
[1755151366723,0.1064,4716.4,4716.3,3.89141298]
[1755151366949,0.1064,4716.4,4716.3,4.38141298]
[1755151367651,14.5,4717.0,4716.3,4.38141298]
[1755151367977,0.1064,4716.7,4716.6,2.1201713]
[1755151368113,0.1064,4716.7,4716.6,6.50058428]
[1755151368314,0.1056,4717.1,4717.0,2.11999152]
[1755151368622,14.5,4718.3,4718.2,2.11945233]
[1755151368926,0.1056,4718.3,4718.2,6.49986531]
[1755151369157,0.002,4719.3,4718.2,0.19731298]
[1755151369317,0.4637,4718.8,4718.3,3.45231298]
[1755151369513,0.9613,4718.7,4716.4,2.12026121]
[1755151369745,0.9613,4718.6,4716.6,5.1201713]
[1755151370055,0.9613,4718.6,4716.7,0.9281]
[1755151370263,0.9613,4719.0,4716.8,3.04818141]
[1755151370552,14.5,4718.5,4718.3,2.11940434]
[1755151370847,14.5,4718.5,4718.4,3.255]
[1755151371056,15.99637,4718.5,4718.4,3.255]
[1755151372842,15.99637,4718.5,4718.4,3.254]
[1755151372843,16.91837,4718.5,4718.4,3.254]
[1755151373148,14.5,4718.5,4718.4,3.254]
[1755151373355,15.422,4718.5,4718.4,3.254]
[1755151373729,15.422,4718.5,4717.8,2.11962573]
[1755151373929,0.4698,4718.4,4717.8,2.11962573]
[1755151374126,0.4698,4718.4,4717.6,2.11968976]
[1755151374353,0.4698,4718.4,4717.8,2.11962115]
[1755151374659,14.5,4718.5,4717.6,2.11971219]
[1755151374826,14.9698,4718.5,4717.7,3.254]
[1755151375169,0.922,4718.4,4717.8,3.254]
[1755151375326,3.922,4718.4,4717.9,3.254]
[1755151375532,2.7642,4718.3,4718.0,3.254]
[1755151375731,2.7642,4718.3,4718.1,3.254]
[1755151376032,0.922,4718.2,4717.2,2.11989148]
[1755151376229,0.922,4718.2,4716.5,0.4458]
[1755151376545,0.922,4718.1,4716.6,2.12014953]
[1755151376745,1.19842,4718.0,4716.3,0.001]
[1755151376946,14.5,4717.6,4716.6,2.12015998]
[1755151377124,0.922,4717.5,4716.4,2.12022113]
[1755151377329,0.922,4717.5,4716.5,3.254]
[1755151377528,0.922,4717.5,4716.5,5.3741949]
[1755151377758,0.922,4717.5,4716.7,2.12009275]
[1755151378456,1.5422,4717.4,4716.8,2.12006486]
[1755151378756,1.5422,4717.4,4716.5,3.254]
[1755151378967,0.922,4717.5,4716.8,2.12007049]
[1755151379433,0.1064,4716.9,4716.8,2.12007049]
[1755151379948,0.1064,4716.9,4716.5,3.254]
[1755151380157,0.1064,4716.6,4716.5,3.254]
[1755151380361,0.1064,4716.6,4716.5,4.1823]
[1755151381049,0.1064,4716.6,4716.5,3.254]
[1755151381665,0.1064,4716.6,4716.5,3.45159177]
[1755151381850,0.1064,4716.6,4716.5,0.19759177]
[1755151382162,0.1064,4716.6,4716.5,3.45159177]
[1755151382341,0.1064,4716.6,4716.5,0.19759177]
[1755151382544,0.1064,4716.6,4716.5,3.45159177]
[1755151382742,0.1064,4716.6,4716.5,5.57180803]
[1755151382949,0.5762,4716.6,4716.5,0.19759177]
[1755151383365,1.0284,4716.6,4716.5,0.19759177]
[1755151383568,1.0284,4716.6,4716.5,3.45159177]
[1755151383744,1.0284,4716.6,4716.3,0.001]
[1755151383943,15.422,4716.5,4716.3,0.001]
[1755151384141,2.47484,4716.4,4716.3,0.001]
[1755151384535,0.922,4716.4,4716.1,0.02]
[1755151384738,15.5284,4716.3,4716.1,0.02]
[1755151384976,14.6064,4716.3,4716.2,3.255]
[1755151385184,14.6064,4716.3,4716.1,0.02]
[1755151385534,0.922,4716.2,4716.1,0.02]
[1755151385741,1.55284,4716.2,4716.1,0.02]
[1755151386042,0.922,4716.2,4716.1,0.02]
[1755151386262,15.422,4716.2,4716.1,0.02]
[1755151386471,15.422,4716.2,4716.1,0.021]
[1755151386676,18.422,4716.2,4715.8,0.001]
[1755151386881,0.1064,4716.0,4715.8,0.001]
[1755151387083,3.0,4715.8,4715.1,0.02]
[1755151387373,0.922,4715.9,4715.1,0.02]
[1755151387680,0.1064,4715.2,4715.1,0.02]
[1755151388083,0.1064,4715.2,4715.1,2.14084579]
[1755151388309,0.1064,4715.2,4715.1,0.02]
[1755151388617,0.1064,4715.2,4715.1,5.39584579]
[1755151388914,0.1064,4715.2,4715.1,3.275]
[1755151389275,0.1064,4715.2,4715.0,2.12089019]
[1755151389523,0.4522,4715.9,4714.7,2.12102572]
[1755151389705,0.1064,4714.7,4714.6,2.56687071]
[1755151389868,0.1064,4714.7,4714.6,2.12107071]
[1755151390375,0.1064,4714.7,4714.4,2.12114875]
[1755151390570,0.1064,4714.7,4714.6,2.12107071]
[1755151390771,0.1064,4714.7,4714.6,3.04937071]
[1755151391191,0.1064,4714.7,4714.6,6.31437071]
[1755151391372,0.1064,4714.7,4714.6,2.12107071]
[1755151391575,0.1064,4714.7,4714.6,6.31437071]
[1755151391790,0.1064,4714.7,4714.6,5.38607071]
[1755151392215,0.1064,4714.7,4714.6,6.31437071]
[1755151393388,0.1064,4714.7,4714.6,5.39107071]
[1755151394197,0.1064,4714.7,4714.6,6.31937071]
[1755151394884,0.1064,4714.7,4714.6,4.1983]
[1755151395084,0.1064,4714.7,4714.6,6.31937071]
[1755151395301,14.5,4715.8,4715.7,2.12057594]
[1755151395483,0.1064,4715.0,4714.8,2.12094405]
[1755151395689,0.1064,4715.0,4714.9,5.58789089]
[1755151395888,0.1064,4715.0,4714.9,2.31789089]
[1755151396116,0.1064,4715.0,4714.9,5.58789089]
[1755151396916,0.1064,4715.0,4714.9,6.51619089]
[1755151397487,0.1064,4715.0,4714.9,6.46619089]
[1755151399492,14.5,4715.8,4715.7,2.12057594]
[1755151399720,0.1064,4715.8,4715.7,5.58853108]
[1755151400012,0.1064,4715.8,4715.7,6.51683108]
[1755151400402,0.002,4716.4,4716.3,2.12030617]
[1755151400582,0.002,4716.4,4716.3,11.59856131]
[1755151401210,0.1064,4716.7,4716.6,2.1201713]
[1755151401412,0.002,4717.1,4717.0,2.11999152]
[1755151401616,0.002,4717.1,4717.0,6.48804666]
[1755151402215,0.002,4717.6,4717.1,5.11994657]
[1755151402422,0.002,4717.6,4717.5,15.06366279]
[1755151402714,0.002,4717.6,4717.5,5.58772196]
[1755151402914,0.002,4717.6,4717.5,5.58872196]
[1755151403416,0.002,4717.6,4717.5,6.02652196]
[1755151404010,0.002,4717.6,4717.5,5.58872196]
[1755151404595,0.002,4717.6,4717.5,2.31672196]
[1755151404811,0.002,4717.6,4717.5,5.58772196]
[1755151405213,0.002,4717.6,4717.5,6.43782196]
[1755151405934,0.002,4717.6,4717.5,3.16682196]
[1755151406103,0.002,4717.6,4717.5,5.53772196]
[1755151406297,0.002,4717.6,4717.5,6.43782196]
[1755151406531,0.002,4717.6,4717.5,5.53772196]
[1755151406828,0.002,4717.6,4717.5,6.43782196]
[1755151407048,0.002,4718.1,4718.0,2.11954217]
[1755151407327,0.002,4718.1,4718.0,5.58649731]
[1755151408524,0.002,4718.1,4718.0,5.58639556]
[1755151410605,0.002,4718.1,4718.0,5.58539556]
[1755151411625,0.002,4718.1,4718.0,6.48549556]
[1755151411811,1e-08,4718.1,4718.0,6.48549556]
[1755151412034,1e-08,4718.1,4718.0,8.58539556]
[1755151412826,1e-08,4718.1,4718.0,5.58539556]
[1755151413396,1e-08,4718.1,4718.0,5.53539556]
[1755151413397,0.10560001,4718.1,4718.0,5.53539556]
[1755151413809,0.56080001,4718.1,4718.0,5.53539556]
[1755151414026,1.05380001,4718.1,4718.0,5.53539556]
[1755151414223,1.16118001,4718.1,4718.0,5.53539556]
[1755151415424,1.16118001,4718.1,4718.0,3.46585339]
[1755151415795,1.16118001,4718.1,4718.0,5.58539556]
[1755151415998,1.16118001,4718.1,4718.0,0.19685339]
[1755151416231,0.21298001,4718.1,4718.0,5.58539556]
[1755151416430,0.10560001,4718.1,4718.0,5.58539556]
[1755151416722,0.56080001,4718.1,4718.0,5.58539556]
[1755151417114,1.05380001,4718.1,4718.0,5.58539556]
[1755151418144,1.05380001,4718.1,4718.0,0.19685339]
[1755151418353,1.05380001,4718.1,4718.0,3.46485339]
[1755151418565,1.16118001,4718.1,4717.4,2.119784]
[1755151418853,1.16118001,4718.1,4716.3,5.082]
[1755151418854,0.9482,4718.0,4716.8,2.12008141]
[1755151419013,0.1056,4717.2,4716.5,2.12021626]
[1755151419213,0.9482,4717.1,4716.5,2.12021626]
[1755151419431,0.9482,4717.1,4716.9,2.12003444]
[1755151419625,0.9482,4717.0,4716.9,2.12003444]
[1755151419804,1.0538,4717.0,4716.9,3.267]
[1755151420838,1.0538,4717.0,4716.3,5.082]
[1755151421038,0.1064,4716.4,4716.3,5.082]
[1755151421342,0.5616,4716.4,4716.3,5.082]
[1755151421709,1.0546,4716.4,4716.3,5.082]
[1755151422068,1.0546,4716.4,4716.3,3.266]
[1755151422210,1.2236121,4716.4,4716.3,3.266]
[1755151422537,1.8591661,4716.4,4716.3,3.266]
[1755151422950,1.8591661,4716.4,4715.6,2.12061909]
[1755151423242,0.1064,4715.7,4715.6,2.12062091]
[1755151424330,0.1064,4715.7,4715.6,5.38562091]
[1755151425410,0.1064,4715.7,4715.6,3.265]
[1755151425643,0.1064,4715.7,4715.4,2.12067253]
[1755151425862,0.5616,4715.7,4715.4,2.12067253]
[1755151426035,0.4552,4715.6,4715.5,3.264]
[1755151426236,0.9482,4715.6,4715.5,3.264]
[1755151426862,1.10982,4715.6,4715.5,3.264]
[1755151427454,0.61682,4715.6,4715.5,3.264]
[1755151427769,0.16162,4715.6,4715.5,3.264]
[1755151427942,0.1064,4715.7,4715.5,3.264]
[1755151428929,0.1064,4715.7,4715.5,5.38466544]
[1755151429379,0.1064,4715.7,4715.5,3.264]
[1755151429554,0.5616,4715.7,4715.5,3.264]
[1755151429929,0.1064,4715.7,4715.6,2.12062091]
[1755151430146,0.4552,4716.2,4715.7,2.12055898]
[1755151430352,0.5616,4716.1,4715.7,2.12055898]
[1755151430664,1.0168,4716.1,4715.8,0.19695091]
[1755151430957,1.0168,4716.1,4715.9,0.19695091]
[1755151430958,0.15098,4716.0,4715.9,0.19695091]
[1755151431330,0.25738,4716.0,4715.9,3.45995091]
[1755151431733,0.1064,4716.0,4715.9,3.45995091]
[1755151432666,0.5571,4716.0,4715.9,3.45995091]
[1755151433348,0.5571,4716.0,4715.3,0.001]
[1755151433555,0.4507,4716.0,4715.5,2.12065551]
[1755151433952,0.1064,4715.6,4715.4,3.262]
[1755151434534,0.5571,4715.6,4715.4,3.262]
[1755151435763,0.1064,4715.6,4715.4,3.262]
[1755151436142,0.5571,4715.6,4715.4,3.262]
[1755151436460,0.9473,4715.5,4715.3,0.001]
[1755151436656,0.1064,4715.6,4715.4,3.261]
[1755151436860,0.2256721,4715.6,4715.4,3.261]
[1755151437081,0.8613301,4715.6,4715.4,3.261]
[1755151437867,0.8613301,4715.6,4715.3,0.001]
[1755151437868,0.4507,4715.5,4715.3,0.001]
[1755151438049,0.4507,4715.5,4715.4,3.259]
[1755151438671,0.2256721,4715.6,4715.4,3.259]
[1755151439043,0.2256721,4715.6,4714.8,0.001]
[1755151439044,1.3120301,4715.6,4715.0,2.12088327]
[1755151439239,0.13120301,4715.5,4715.0,2.12088327]
[1755151439564,0.1064,4715.1,4714.8,0.001]
[1755151439756,0.1064,4715.1,4714.8,2.1219703]
[1755151440156,0.1064,4715.1,4714.8,0.001]
[1755151440455,0.1064,4715.1,4714.9,3.258]
[1755151440456,0.5571,4715.1,4714.9,3.258]
[1755151440658,0.4966,4715.5,4715.0,3.258]
[1755151440839,1.0605266,4715.4,4715.0,3.258]
[1755151441172,0.1064,4715.1,4715.0,3.258]
[1755151441368,0.5571,4715.1,4715.0,3.258]
[1755151441679,0.1064,4715.1,4715.0,6.31489077]
[1755151441881,0.1064,4715.1,4715.0,3.258]
[1755151442045,1.0537,4715.1,4715.0,3.258]
[1755151442242,1.21478,4715.1,4714.4,0.001]
[1755151442474,0.4507,4715.0,4714.4,0.001]
[1755151443188,0.1064,4714.5,4714.4,0.001]
[1755151443542,0.1064,4714.5,4714.4,5.38216069]
[1755151443979,0.1064,4714.5,4714.4,4.197]
[1755151444189,0.1064,4714.5,4714.4,0.001]
[1755151444387,0.1064,4714.5,4714.4,3.261]
[1755151444544,0.5571,4714.5,4714.4,3.261]
[1755151444748,1.0537,4714.5,4714.1,0.02]
[1755151444944,0.9473,4714.4,4714.2,3.26]
[1755151445156,0.9473,4714.3,4714.2,3.26]
[1755151445359,0.1064,4714.3,4714.2,3.45722473]
[1755151445651,0.5571,4714.3,4714.2,3.45722473]
[1755151445859,0.1064,4714.3,4714.2,3.45722473]
[1755151446050,0.5571,4714.3,4714.2,3.45722473]
[1755151446242,1.0537,4714.3,4714.1,0.02]
[1755151446446,0.9473,4714.2,4714.1,0.02]
[1755151446687,0.9473,4714.2,4714.1,3.279]
[1755151446688,0.4507,4714.2,4714.1,3.279]
[1755151446889,0.1064,4714.3,4713.7,2.12145398]
[1755151447114,0.4966,4714.6,4713.5,0.4609]
[1755151447252,0.1064,4713.5,4713.1,0.02]
[1755151447752,0.1064,4713.2,4713.1,0.02]
[1755151448156,0.1064,4713.2,4713.1,3.278]
[1755151449678,0.1064,4713.2,4713.1,4.214]
[1755151449881,0.1064,4713.2,4713.1,6.33574577]
[1755151450605,0.1064,4713.2,4713.1,4.214]
[1755151450753,0.1064,4713.2,4713.1,3.278]
[1755151451080,0.1064,4713.2,4713.1,0.02]
[1755151451295,1.0537,4713.2,4712.1,2.14215354]
[1755151451450,0.1064,4712.3,4712.2,3.26]
[1755151451645,0.1064,4712.3,4712.2,5.84303757]
[1755151451849,0.1064,4712.3,4712.2,4.196]
[1755151452051,0.1064,4712.3,4712.2,3.26]
[1755151452266,0.1,4715.6,4712.2,4.196]
[1755151452267,3.0,4714.3,4712.2,4.196]
[1755151452469,0.1064,4712.3,4712.2,6.31814112]
[1755151452668,0.1064,4712.3,4712.2,3.26]
[1755151452986,0.1064,4712.3,4712.2,5.38215101]
[1755151453306,0.1064,4712.3,4712.2,3.7209]
[1755151453527,0.1064,4712.3,4712.2,6.31815101]
[1755151454212,0.1064,4712.3,4712.2,6.31715101]
[1755151454567,0.635955,4714.0,4712.5,12.95966585]
[1755151454774,0.4507,4714.2,4713.2,2.07165688]
[1755151455000,1.538504,4714.5,4713.3,3.259]
[1755151455201,0.635904,4714.5,4713.4,3.7199]
[1755151455404,0.56546281,4716.1,4713.4,3.7199]
[1755151455405,0.4507,4715.6,4713.7,12.95966585]
[1755151455606,0.4507,4715.6,4713.4,3.259]
[1755151455823,0.1064,4714.0,4713.1,0.1064]
[1755151455971,0.4507,4715.3,4713.0,5.085]
[1755151455972,0.1064,4713.5,4713.2,3.259]
[1755151456167,3.4519,4715.3,4713.3,0.936]
[1755151456498,14.5,4714.3,4714.2,2.12125068]
[1755151456715,0.34719,4715.2,4714.2,4.197]
[1755151456896,0.1064,4714.3,4714.2,6.31825068]
[1755151457313,14.5,4715.3,4715.2,2.12080081]
[1755151457501,14.5,4715.3,4715.2,5.38180081]
[1755151457820,14.5,4715.3,4715.2,5.84270081]
[1755151457821,14.6064,4715.3,4715.2,5.84270081]
[1755151457981,14.6064,4715.3,4715.2,6.31780081]
[1755151458413,0.02,4715.4,4715.2,6.31780081]
[1755151458589,0.02,4715.4,4715.3,0.936]
[1755151459384,0.02,4715.4,4715.3,0.4751]
[1755151459687,0.02,4715.4,4715.3,4.198]
[1755151459901,0.02,4715.4,4715.2,7.20580081]
[1755151460107,0.02,4715.4,4715.3,3.262]
[1755151460598,0.02,4715.4,4715.2,5.085]
[1755151460921,0.1264,4715.4,4713.8,5.084]
[1755151461125,0.1064,4713.9,4713.8,5.084]
[1755151461298,14.5,4714.9,4714.8,2.12098074]
[1755151461920,14.6064,4714.9,4714.8,2.12098074]
[1755151462119,14.6064,4714.9,4714.8,5.38798074]
[1755151462319,14.6064,4714.9,4714.8,5.82028074]
[1755151462512,14.6064,4714.9,4714.8,6.30548074]
[1755151462711,14.6064,4714.9,4714.8,6.25548074]
[1755151463410,0.1064,4714.9,4714.8,6.25548074]
[1755151463803,0.1064,4714.9,4714.8,3.267]
[1755151464126,0.1064,4714.9,4714.8,3.266]
[1755151464424,0.1064,4714.9,4714.8,4.1835]
[1755151464615,14.6064,4714.9,4714.8,4.1835]
[1755151464928,0.1064,4714.9,4714.8,4.1835]
[1755151465224,0.1064,4714.9,4714.8,6.30448074]
[1755151466830,0.02,4715.4,4715.3,2.12075583]
[1755151467144,0.02,4715.4,4715.3,6.30525583]
[1755151467374,0.1264,4715.4,4715.3,5.38775583]
[1755151467737,0.1284,4715.4,4715.3,5.38775583]
[1755151468843,14.6284,4715.4,4715.3,5.38775583]
[1755151469043,14.6284,4715.4,4715.3,5.82005583]
[1755151469270,14.6284,4715.4,4715.3,5.38775583]
[1755151470950,16.0485967,4715.4,4715.3,3.265]
[1755151471135,16.6842547,4715.4,4715.3,3.265]
[1755151471455,16.6842547,4715.4,4715.3,3.267]
[1755151471657,16.0485967,4715.4,4715.2,2.12078472]
[1755151471862,14.522,4715.4,4715.0,2.12089077]
[1755151472026,14.522,4715.4,4714.8,2.60616785]
[1755151472227,14.522,4715.4,4715.1,2.12080213]
[1755151472423,14.522,4715.4,4714.8,0.4852]
[1755151472655,16.4267,4715.4,4714.0,0.4323]
[1755151472827,1.9267,4715.4,4714.1,3.268]
[1755151473027,0.4743,4715.4,4714.1,3.268]
[1755151473222,14.5,4715.1,4714.3,2.12120569]
[1755151473457,14.5,4715.1,4714.7,2.12100676]
[1755151473761,14.5,4715.1,4714.8,3.268]
[1755151473939,14.5,4715.1,4714.9,3.268]
[1755151474134,14.5,4715.1,4715.0,3.268]
[1755151474351,15.88536293,4715.1,4715.0,3.268]
[1755151474535,15.88536293,4715.1,4714.3,2.12120523]
[1755151474738,15.88536293,4715.1,4713.8,5.5163]
[1755151474945,15.88536293,4715.1,4714.0,2.12134068]
[1755151475145,16.06876993,4715.1,4714.4,2.12115941]
[1755151475367,16.06876993,4715.1,4713.8,5.084]
[1755151475368,1.60907699,4715.0,4714.2,2.12125068]
[1755151475861,1.60907699,4715.0,4714.3,3.268]
[1755151476536,15.43306293,4715.1,4714.7,2.12101206]
[1755151476763,15.43306293,4715.1,4714.8,3.6993]
[1755151476967,15.43306293,4715.1,4714.9,3.267]
[1755151477167,15.43306293,4715.1,4713.9,12.96487594]
[1755151477168,15.43306293,4715.1,4715.0,3.267]
[1755151477467,15.43306293,4715.1,4714.4,2.12115911]
[1755151477766,15.43306293,4715.1,4714.6,2.1210626]
[1755151477970,1e-08,4716.9,4715.6,1.11103901]
[1755151478268,1e-08,4716.9,4714.7,2.3247]
[1755151478269,1e-08,4716.9,4716.8,15.08495735]
[1755151478482,1e-08,4716.9,4716.8,23.0312092]
[1755151478675,1e-08,4716.9,4716.8,22.22442]
[1755151478968,1e-08,4716.9,4716.8,27.34265735]
[1755151479468,1e-08,4718.1,4718.0,2.11954217]
[1755151479668,1e-08,4718.1,4718.0,19.25911811]
[1755151480134,1e-08,4718.1,4718.0,18.85961811]
[1755151480765,1e-08,4718.1,4718.0,5.89474217]
[1755151480967,1e-08,4718.1,4718.0,6.69617881]
[1755151481175,1e-08,4718.1,4718.0,7.09567881]
[1755151481478,1e-08,4718.1,4718.0,5.89474217]
[1755151483714,1e-08,4718.1,4718.0,2.60474217]
[1755151483909,1e-08,4718.1,4718.0,5.89074217]
[1755151486889,0.45230001,4718.1,4718.0,5.40254217]
[1755151487065,0.55790001,4718.1,4717.9,2.11958709]
[1755151487283,0.10560001,4718.1,4718.0,5.40254217]
[1755151487483,1e-08,4718.1,4718.0,5.40254217]
[1755151487725,14.60560001,4718.1,4718.0,5.40254217]
[1755151487932,15.05790001,4718.1,4718.0,3.283]
[1755151488092,16.56569001,4718.1,4718.0,3.285]
[1755151488290,2.06569001,4718.1,4718.0,3.286]
[1755151488537,0.55790001,4718.1,4716.8,5.1894]
[1755151488730,14.9523,4718.0,4717.6,2.11970401]
[1755151488932,0.4523,4717.9,4717.3,2.11983888]
[1755151489234,0.4523,4717.9,4717.7,2.11963288]
[1755151489434,0.4523,4717.9,4717.8,5.40563203]
[1755151489819,0.5579,4717.9,4717.8,3.286]
[1755151491141,1e-08,4718.1,4718.0,2.11954217]
[1755151491636,0.10560001,4718.1,4717.8,3.286]
[1755151491799,0.10560001,4718.1,4718.0,2.11954217]
[1755151492002,1e-08,4718.1,4718.0,2.11954217]
[1755151492537,0.10560001,4718.1,4718.0,5.40454217]
[1755151494302,0.10560001,4718.1,4718.0,3.285]
[1755151494497,0.56790001,4718.1,4716.6,0.4642]
[1755151494731,0.1056,4717.7,4716.7,3.284]
[1755151494952,0.1056,4717.7,4716.9,2.12002303]
[1755151494953,0.1056,4717.2,4716.9,2.12002303]
[1755151495107,1e-08,4718.1,4717.0,3.7492]
[1755151495108,0.1056,4717.5,4717.0,3.7492]
[1755151495302,0.1056,4717.5,4717.4,2.11981176]